fUSD/lending_fUSD_20240526
["ID","MTS","AMOUNT","RATE_DAILY","PERIOD"]
[327950197,1716694258993,-822.55,0.0003178,5]
[327950198,1716694259003,-2641.26,0.0003178,5]
[327950199,1716694259013,-646.86,0.0003178,5]
[327950200,1716694259022,-500.0,0.0003178,5]
[327950201,1716694259032,-848.5,0.0003178,5]
[327950202,1716694259042,-1054.66,0.0003178,5]
[327950203,1716694259052,-1109.75,0.0003178,5]
[327950204,1716694259062,-589.09,0.0003178,5]
[327950205,1716694259072,-500.0,0.0003178,5]
[327950206,1716694259082,-500.0,0.0003178,5]
[327950207,1716694259092,-500.0,0.0003178,5]
[327950208,1716694259102,-1201.77,0.0003178,5]
[327950209,1716694259112,-500.0,0.0003178,5]
[327950210,1716694259122,-958.23,0.0003178,5]
[327950211,1716694259132,-751.56,0.0003178,5]
[327950212,1716694259142,-633.0,0.0003178,5]
[327950213,1716694259153,-500.0,0.0003178,5]
[327950214,1716694259163,-500.0,0.0003178,5]
[327950215,1716694259172,-500.0,0.0003178,5]
[327950216,1716694259182,-500.0,0.0003178,5]
[327950217,1716694259191,-500.0,0.0003178,5]
[327950218,1716694259201,-516.17,0.0003178,5]
[327950219,1716694259211,-2280.65,0.0003178,5]
[327950220,1716694259220,-1269.66,0.0003178,5]
[327950221,1716694259230,-500.0,0.0003178,5]
[327950222,1716694259240,-500.0,0.0003178,5]
[327950223,1716694259250,-500.0,0.0003178,5]
[327950224,1716694259263,-500.0,0.0003178,5]
[327950225,1716694259273,-1201.88,0.0003178,5]
[327950226,1716694259283,-705.53,0.0003178,5]
[327950227,1716694259292,-4203.34,0.0003178,5]
[327950228,1716694259302,-365.888555,0.0003178,7]
[327950229,1716694259311,-365.888555,0.0003178,7]
[327950230,1716694259321,-365.888555,0.0003178,7]
[327950231,1716694259331,-500.0,0.0003178,5]
[327950232,1716694259340,-769.96,0.0003178,5]
[327950233,1716694259349,-1909.6,0.0003178,5]
[327950234,1716694259359,-500.0,0.0003178,5]
[327950235,1716694259368,-500.0,0.0003178,5]
[327950236,1716694259378,-500.0,0.0003178,5]
[327950237,1716694259388,-365.888555,0.0003178,7]
[327950238,1716694259397,-706.86,0.0003178,5]
[327950239,1716694259406,-365.888555,0.0003178,7]
[327950240,1716694259417,-365.888555,0.0003178,7]
[327950241,1716694259429,-500.0,0.0003178,5]
[327950242,1716694259439,-500.0,0.0003178,5]
[327950243,1716694259448,-500.0,0.0003178,5]
[327950244,1716694259459,-1022.16,0.0003178,5]
[327950245,1716694259469,-500.0,0.0003178,5]
[327950246,1716694259478,-1835.1,0.0003178,5]
[327950247,1716694259488,-500.0,0.0003178,5]
[327950248,1716694259499,-4009.38,0.0003178,5]
[327950249,1716694259508,-500.0,0.0003178,5]
[327950250,1716694259518,-2678.17,0.0003178,5]
[327950251,1716694259527,-2164.34,0.0003178,5]
[327950252,1716694259537,-585.88,0.0003178,5]
[327950253,1716694259546,-500.0,0.0003178,5]
[327950254,1716694259556,-1250.85,0.0003178,5]
[327950255,1716694259566,-1550.86,0.0003178,5]
[327950256,1716694259575,-1726.47,0.0003178,5]
[327950257,1716694259584,-1943.0,0.0003178,5]
[327950258,1716694259593,-1401.86,0.0003178,5]
[327950259,1716694259603,-664.06,0.0003178,5]
[327950260,1716694259612,-671.56,0.0003178,5]
[327950261,1716694259621,-500.0,0.0003178,5]
[327950262,1716694259630,-151.0,0.0003178,7]
[327950263,1716694259639,-595.27,0.0003178,5]
[327950264,1716694259650,-675.75,0.0003178,5]
[327950265,1716694259659,-1205.47,0.0003178,5]
[327950266,1716694259668,-500.0,0.0003178,5]
[327950267,1716694259678,-1339.3,0.0003178,5]
[327950268,1716694259689,-3096.73,0.0003178,5]
[327950269,1716694259700,-1230.26,0.0003178,5]
[327950270,1716694259709,-1076.76,0.0003178,5]
[327950271,1716694259718,-500.0,0.0003178,5]
[327950272,1716694259728,-500.0,0.0003178,5]
[327950273,1716694259737,-626.49,0.0003178,5]
[327950274,1716694259747,-151.0,0.0003178,7]
[327950275,1716694259756,-500.0,0.0003178,5]
[327950276,1716694259768,-527.99138639,0.0003178,5]
[327950277,1716694259779,-579.67,0.0003178,5]
[327950278,1716694259791,-756.03,0.0003178,5]
[327950279,1716694259802,-1469.29,0.0003178,5]
[327950280,1716694259811,-500.0,0.0003178,5]
[327950281,1716694259821,-1776.54,0.0003178,5]
[327950282,1716694259831,-595.64,0.0003178,5]
[327950283,1716694259841,-1646.18,0.0003178,5]
[327950284,1716694259851,-500.0,0.0003178,5]
[327950285,1716694259860,-500.0,0.0003178,5]
[327950286,1716694259870,-1965.49,0.0003178,5]
[327950287,1716694259880,-500.0,0.0003178,5]
[327950288,1716694259892,-1317.64,0.0003178,5]
[327950289,1716694259902,-500.0,0.0003178,5]
[327950290,1716694259912,-500.0,0.0003178,5]
[327950291,1716694259921,-1678.87,0.0003178,5]
[327950292,1716694259930,-1782.69,0.0003178,5]
[327950293,1716694259939,-1567.0,0.0003178,5]
[327950294,1716694259949,-500.0,0.0003178,5]
[327950295,1716694259958,-1853.34,0.0003178,5]
[327950296,1716694259967,-570.81,0.0003178,5]
[327950297,1716694259977,-961.82,0.0003178,5]
[327950298,1716694259986,-999.96,0.0003178,5]
[327950299,1716694259995,-382.64635462,0.0003178,5]
[327950300,1716694260004,-653.14,0.0003178,5]
[327950301,1716694260014,-1121.23,0.0003178,5]
[327950302,1716694260024,-1066.27,0.0003178,5]
[327950303,1716694260034,-500.0,0.0003178,5]
[327950304,1716694260043,-845.58,0.0003178,5]
[327950305,1716694260053,-2186.09,0.0003178,5]
[327950306,1716694260062,-1277.87,0.0003178,5]
[327950307,1716694260071,-500.0,0.0003178,2]
[327950308,1716694260080,-500.0,0.0003178,5]
[327950309,1716694260090,-1343.78,0.0003178,5]
[327950310,1716694260100,-500.0,0.0003178,5]
[327950311,1716694260110,-500.0,0.0003178,2]
[327950312,1716694260119,-500.0,0.0003178,2]
[327950313,1716694260130,-500.0,0.0003178,2]
[327950314,1716694260139,-500.0,0.0003178,2]
[327950315,1716694260148,-500.0,0.0003178,2]
[327950316,1716694260158,-500.0,0.0003178,2]
[327950317,1716694260168,-500.0,0.0003178,5]
[327950318,1716694260178,-500.0,0.0003178,2]
[327950319,1716694260187,-2308.07,0.0003178,5]
[327950320,1716694260197,-500.0,0.0003178,5]
[327950321,1716694260207,-500.0,0.0003178,2]
[327950322,1716694260217,-500.0,0.0003178,2]
[327950323,1716694260227,-500.0,0.0003178,2]
[327950324,1716694260238,-1110.24,0.0003178,5]
[327950325,1716694260248,-500.0,0.0003178,2]
[327950326,1716694260258,-500.0,0.0003178,2]
[327950327,1716694260268,-500.0,0.0003178,2]
[327950328,1716694260278,-500.0,0.0003178,5]
[327950329,1716694260287,-500.0,0.0003178,2]
[327950330,1716694260297,-986.12,0.0003178,5]
[327950331,1716694260307,-500.0,0.0003178,2]
[327950332,1716694260316,-500.0,0.0003178,2]
[327950333,1716694260325,-500.0,0.0003178,5]
[327950334,1716694260335,-2277.24,0.0003178,5]
[327950335,1716694260344,-3013.24,0.0003178,5]
[327950336,1716694260354,-500.0,0.0003178,5]
[327950337,1716694260364,-500.0,0.0003178,5]
[327950338,1716694260374,-500.0,0.0003178,2]
[327950339,1716694260383,-500.0,0.0003178,5]
[327950340,1716694260393,-500.0,0.0003178,5]
[327950341,1716694260403,-500.0,0.0003178,2]
[327950342,1716694260412,-449.94489552,0.0003178,5]
[327950343,1716694260427,-1184.1,0.0003178,5]
[327950344,1716694260439,-500.0,0.0003178,2]
[327950345,1716694260448,-500.0,0.0003178,2]
[327950346,1716694260459,-1237.74,0.0003178,5]
[327950347,1716694260470,-500.0,0.0003178,5]
[327950348,1716694260479,-500.0,0.0003178,5]
[327950349,1716694260488,-1122.65,0.0003178,5]
[327950350,1716694260499,-662.42,0.0003178,5]
[327950351,1716694260510,-1215.86,0.0003178,5]
[327950352,1716694260519,-1250.59,0.0003178,5]
[327950353,1716694260529,-500.0,0.0003178,5]
[327950354,1716694260538,-1423.14,0.0003178,5]
[327950355,1716694260816,-500.0,0.0003178,5]
[327950356,1716694260832,-500.0,0.0003178,2]
[327950357,1716694260842,-500.0,0.0003178,5]
[327950358,1716694260851,-500.0,0.0003178,5]
[327950359,1716694260860,-3114.91,0.0003178,5]
[327950360,1716694260869,-1706.2,0.0003178,5]
[327950361,1716694260879,-500.0,0.0003178,5]
[327950362,1716694260888,-500.0,0.0003178,5]
[327950363,1716694260898,-1094.0,0.0003178,5]
[327950364,1716694260907,-500.0,0.0003178,5]
[327950365,1716694260916,-765.41,0.0003178,5]
[327950366,1716694260926,-150.0,0.00031781,2]
[327950367,1716694260935,-150.0,0.00031781,2]
[327950368,1716694260944,-150.0,0.00031785,2]
[327950369,1716694260953,-150.0,0.00031785,2]
[327950370,1716694260962,-1520.143563,0.00031785,2]
[327950371,1716694260972,-150.0,0.00031786,2]
[327950372,1716694260981,-150.0,0.00031786,2]
[327950373,1716694260991,-150.0,0.00031786,2]
[327950374,1716694261000,-161.13139019,0.0003179,2]
[327950375,1716694261009,-1040.12112486,0.0003179,2]
[327950376,1716694261018,-150.0,0.00031795,2]
[327950377,1716694261028,-150.0,0.00031796,2]
[327950378,1716694261037,-800.1624558,0.00031799,2]
[327950379,1716694261047,-2000.0,0.000318,6]
[327950380,1716694261057,-150.0,0.000318,2]
[327950381,1716694261066,-150.0,0.00031801,2]
[327950382,1716694261077,-150.0,0.00031805,2]
[327950383,1716694261086,-150.0,0.00031805,2]
[327950384,1716694261096,-150.0,0.00031815,2]
[327950385,1716694261105,-150.0,0.00031817,2]
[327950386,1716694261114,-150.0,0.00031825,2]
[327950387,1716694261123,-150.0,0.00031828,2]
[327950388,1716694261132,-150.0,0.00031833,2]
[327950389,1716694261141,-150.0,0.00031833,2]
[327950390,1716694261151,-150.0,0.00031833,2]
[327950391,1716694261160,-150.0,0.00031838,2]
[327950392,1716694261170,-150.0,0.00031848,2]
[327950393,1716694261180,-150.0,0.00031852,2]
[327950394,1716694261189,-150.0,0.00031854,2]
[327950395,1716694261199,-150.0,0.00031861,2]
[327950396,1716694261208,-150.0,0.00031861,2]
[327950397,1716694261218,-150.0,0.00031862,2]
[327950398,1716694261227,-150.0,0.00031866,2]
[327950399,1716694261236,-150.0,0.00031867,2]
[327950400,1716694261245,-150.0,0.00031867,2]
[327950401,1716694261255,-150.0,0.00031868,2]
[327950402,1716694261265,-150.0,0.00031869,2]
[327950403,1716694261275,-150.0,0.00031871,2]
[327950404,1716694261284,-150.0,0.00031872,2]
[327950405,1716694261294,-150.0,0.00031873,2]
[327950406,1716694261303,-150.0,0.00031874,2]
[327950407,1716694261313,-150.0,0.00031875,2]
[327950408,1716694261322,-150.0,0.00031877,2]
[327950409,1716694261332,-150.0,0.00031883,2]
[327950410,1716694261341,-150.0,0.00031884,2]
[327950411,1716694261351,-16728.01966065,0.00031887,2]
[327950412,1716694261361,-604711.99546415,0.0003189,2]
[327950413,1716694261370,-151.0,0.0003189,7]
[327950414,1716694261381,-256.455484,0.0003189,7]
[327950415,1716694261392,-150.0,0.0003189,2]
[327950416,1716694261403,-151.0,0.0003189,7]
[327950417,1716694261412,-151.0,0.0003189,7]
[327950418,1716694261426,-365.888555,0.0003189,7]
[327950419,1716694261435,-365.888555,0.0003189,7]
[327950420,1716694261445,-150.0,0.00031901,2]
[327950421,1716694261455,-150.0,0.00031904,2]
[327950422,1716694261468,-150.0,0.00031907,2]
[327950423,1716694261477,-150.0,0.00031909,2]
[327950424,1716694261487,-150.0,0.00031911,2]
[327950425,1716694261497,-150.0,0.00031918,2]
[327950426,1716694261508,-150.0,0.0003192,2]
[327950427,1716694261519,-150.0,0.00031921,2]
[327950428,1716694261529,-150.0,0.00031923,2]
[327950429,1716694261538,-150.0,0.00031924,2]
[327950430,1716694261547,-314.71743852,0.00031924,2]
[327950431,1716694261557,-150.0,0.00031926,2]
[327950432,1716694261567,-150.0,0.00031927,2]
[327950433,1716694261576,-150.0,0.00031928,2]
[327950434,1716694261586,-150.0,0.00031929,2]
[327950435,1716694261595,-150.0,0.00031932,2]
[327950436,1716694261606,-150.0,0.00031934,2]
[327950437,1716694261616,-150.0,0.00031934,2]
[327950438,1716694261627,-150.0,0.00031939,2]
[327950439,1716694261636,-209.99596232,0.00031942,2]
[327950440,1716694261646,-849.05613619,0.00031942,2]
[327950441,1716694261655,-150.0,0.00031943,2]
[327950442,1716694261665,-150.0,0.00031944,2]
[327950443,1716694261675,-150.0,0.00031947,2]
[327950444,1716694261684,-174.30997392,0.00031952,2]
[327950445,1716694261694,-150.0,0.00031963,2]
[327950446,1716694261704,-150.0,0.00031964,2]
[327950447,1716694261714,-150.0,0.00031968,2]
[327950448,1716694261723,-150.0,0.00031975,2]
[327950449,1716694261732,-150.0,0.00031978,7]
[327950450,1716694261742,-150.0,0.00031979,2]
[327950451,1716694261751,-150.0,0.00031981,2]
[327950452,1716694261761,-150.0,0.00031982,2]
[327950453,1716694261770,-150.0,0.00031985,2]
[327950454,1716694261780,-997.34,0.0003199,2]
[327950455,1716694261790,-150.0,0.00031993,2]
[327950456,1716694261800,-333.85119275,0.00032,4]
[327950457,1716694261811,-189.0,0.00032,16]
[327950458,1716694261821,-233.34,0.00032,2]
[327950459,1716694261830,-160.0,0.00032,5]
[327950460,1716694261841,-583.0,0.00032,20]
[327950461,1716694261851,-150.0,0.00032,7]
[327950462,1716694261861,-247.0,0.00032024,15]
[327950463,1716694261871,-248.0,0.00032024,15]
[327950464,1716694261882,-247.0,0.00032034,15]
[327950465,1716694261893,-248.0,0.00032034,15]
[327950466,1716694261903,-2529.640855,0.00032042,2]
[327950467,1716694261913,-1872.0665663,0.00032042,2]
[327950468,1716694261922,-16373.7320138,0.00032042,2]
[327950469,1716694261932,-156.55,0.00032043,2]
[327950470,1716694261942,-247.0,0.00032044,15]
[327950471,1716694261951,-248.0,0.00032044,15]
[327950472,1716694261961,-16728.01966065,0.00032051,2]
[327950473,1716694261972,-8130.71,0.00032052,5]
[327950474,1716694261983,-500.0,0.00032052,5]
[327950475,1716694261992,-500.0,0.00032052,5]
[327950476,1716694262002,-500.0,0.00032052,5]
[327950477,1716694262013,-808.48,0.00032052,5]
[327950478,1716694262023,-500.0,0.00032052,5]
[327950479,1716694262032,-500.0,0.00032052,5]
[327950480,1716694262042,-798.2,0.00032052,5]
[327950481,1716694262051,-661.1,0.00032052,5]
[327950482,1716694262061,-1029.48,0.00032052,5]
[327950483,1716694262070,-1288.56,0.00032052,5]
[327950484,1716694262080,-885.72,0.00032052,5]
[327950485,1716694262090,-1085.91,0.00032052,5]
[327950486,1716694262100,-1828.1,0.00032052,5]
[327950487,1716694262111,-1036.52,0.00032052,5]
[327950488,1716694262122,-4752.0,0.00032052,5]
[327950489,1716694262132,-654.76789453,0.00032054,2]
[327950490,1716694262142,-155.0,0.00032054,4]
[327950491,1716694262153,-977.98,0.00032054,5]
[327950492,1716694262163,-500.0,0.00032054,5]
[327950493,1716694262173,-526.82785239,0.00032054,5]
[327950494,1716694262182,-500.0,0.00032054,5]
[327950495,1716694262193,-500.0,0.00032054,5]
[327950496,1716694262203,-500.0,0.00032054,5]
[327950497,1716694262213,-331.24633325,0.00032054,5]
[327950498,1716694262223,-500.0,0.00032054,5]
[327950499,1716694262232,-500.0,0.00032054,5]
[327950500,1716694262242,-347.61337545,0.00032054,5]
[327950501,1716694262251,-500.0,0.00032054,5]
[327950502,1716694262261,-500.0,0.00032054,5]
[327950503,1716694262270,-500.0,0.00032054,5]
[327950504,1716694262280,-500.0,0.00032054,5]
[327950505,1716694262290,-500.0,0.00032054,5]
[327950506,1716694262300,-500.0,0.00032054,5]
[327950507,1716694262310,-500.0,0.00032054,2]
[327950508,1716694262320,-500.0,0.00032054,5]
[327950509,1716694262329,-500.0,0.00032054,5]
[327950510,1716694262339,-500.0,0.00032054,5]
[327950511,1716694262349,-500.0,0.00032054,5]
[327950512,1716694262359,-552.2121242,0.00032054,5]
[327950513,1716694262368,-500.0,0.00032054,5]
[327950514,1716694262378,-500.0,0.00032054,5]
[327950515,1716694262389,-508.01,0.00032054,5]
[327950516,1716694262399,-500.0,0.00032054,5]
[327950517,1716694262409,-880.77,0.00032054,5]
[327950518,1716694262423,-500.0,0.00032054,5]
[327950519,1716694262433,-500.0,0.00032054,5]
[327950520,1716694262443,-500.0,0.00032054,5]
[327950521,1716694262452,-500.0,0.00032054,5]
[327950522,1716694262463,-500.0,0.00032054,5]
[327950523,1716694262473,-500.0,0.00032054,5]
[327950524,1716694262482,-500.0,0.00032054,5]
[327950525,1716694262492,-500.0,0.00032054,5]
[327950526,1716694262504,-500.0,0.00032054,5]
[327950527,1716694262513,-500.0,0.00032054,5]
[327950528,1716694262523,-500.0,0.00032054,5]
[327950529,1716694262532,-500.0,0.00032054,5]
[327950530,1716694262542,-500.0,0.00032054,5]
[327950531,1716694262551,-500.0,0.00032054,5]
[327950532,1716694262560,-500.0,0.00032054,5]
[327950533,1716694262570,-500.0,0.00032054,5]
[327950534,1716694262579,-500.0,0.00032054,5]
[327950535,1716694262589,-500.0,0.00032054,5]
[327950536,1716694262598,-500.0,0.00032054,5]
[327950537,1716694262608,-500.0,0.00032054,5]
[327950538,1716694262617,-500.0,0.00032054,5]
[327950539,1716694262627,-173.41511491,0.00032054,5]
[327950540,1716694262636,-330.40335291,0.00032054,5]
[327950541,1716694262645,-898.4,0.00032054,5]
[327950542,1716694262656,-500.0,0.00032054,5]
[327950543,1716694262665,-541.84,0.00032054,5]
[327950544,1716694262675,-500.0,0.00032054,5]
[327950545,1716694262684,-500.0,0.00032054,5]
[327950546,1716694262693,-500.0,0.00032054,5]
[327950547,1716694262702,-500.0,0.00032054,5]
[327950548,1716694262711,-500.0,0.00032054,5]
[327950549,1716694262721,-500.0,0.00032054,5]
[327950550,1716694262730,-500.0,0.00032054,5]
[327950551,1716694262739,-500.0,0.00032054,5]
[327950552,1716694262749,-500.0,0.00032054,5]
[327950553,1716694262758,-500.0,0.00032054,5]
[327950554,1716694262768,-500.0,0.00032054,5]
[327950555,1716694262777,-500.0,0.00032054,5]
[327950556,1716694262787,-503.14212994,0.00032054,5]
[327950557,1716694262796,-500.0,0.00032054,5]
[327950558,1716694262805,-500.0,0.00032054,5]
[327950559,1716694262815,-500.0,0.00032054,5]
[327950560,1716694262824,-500.0,0.00032054,5]
[327950561,1716694262834,-500.0,0.00032054,5]
[327950562,1716694262844,-500.0,0.00032054,5]
[327950563,1716694262853,-500.0,0.00032054,5]
[327950564,1716694262864,-639.90863607,0.00032054,5]
[327950565,1716694262873,-500.0,0.00032054,5]
[327950566,1716694262883,-500.0,0.00032054,5]
[327950567,1716694262892,-500.0,0.00032054,5]
[327950568,1716694262902,-500.0,0.00032054,5]
[327950569,1716694262911,-521.55065394,0.00032054,5]
[327950570,1716694262920,-500.0,0.00032054,5]
[327950571,1716694262930,-566.81907347,0.00032054,5]
[327950572,1716694262939,-500.0,0.00032054,5]
[327950573,1716694262949,-500.0,0.00032054,5]
[327950574,1716694262958,-500.0,0.00032054,5]
[327950575,1716694262968,-500.0,0.00032054,5]
[327950576,1716694262977,-500.0,0.00032054,5]
[327950577,1716694262987,-500.0,0.00032054,5]
[327950578,1716694262997,-500.0,0.00032054,5]
[327950579,1716694263006,-500.0,0.00032054,5]
[327950580,1716694263016,-500.0,0.00032054,5]
[327950581,1716694263026,-500.0,0.00032054,5]
[327950582,1716694263036,-576.73,0.00032054,5]
[327950583,1716694263046,-500.0,0.00032054,5]
[327950584,1716694263056,-500.0,0.00032054,5]
[327950585,1716694263065,-500.0,0.00032054,5]
[327950586,1716694263075,-519.66,0.00032054,5]
[327950587,1716694263085,-500.0,0.00032054,5]
[327950588,1716694263094,-510.1,0.00032054,5]
[327950589,1716694263104,-500.0,0.00032054,5]
[327950590,1716694263114,-500.0,0.00032054,5]
[327950591,1716694263123,-500.0,0.00032054,5]
[327950592,1716694263133,-500.0,0.00032054,5]
[327950593,1716694263143,-500.0,0.00032054,5]
[327950594,1716694263154,-500.0,0.00032054,5]
[327950595,1716694263164,-500.0,0.00032054,5]
[327950596,1716694263235,-500.0,0.00032054,5]
[327950597,1716694263245,-500.0,0.00032054,5]
[327950598,1716694263255,-500.0,0.00032054,5]
[327950599,1716694263264,-500.0,0.00032054,5]
[327950600,1716694263274,-500.0,0.00032054,5]
[327950601,1716694263283,-619.27,0.00032054,5]
[327950602,1716694263292,-500.0,0.00032054,2]
[327950603,1716694263302,-500.0,0.00032054,5]
[327950604,1716694263311,-500.0,0.00032054,5]
[327950605,1716694263321,-500.0,0.00032054,5]
[327950606,1716694263330,-500.0,0.00032054,5]
[327950607,1716694263339,-500.0,0.00032054,5]
[327950608,1716694263348,-155.32952486,0.00032054,5]
[327950609,1716694263357,-500.0,0.00032054,5]
[327950610,1716694263367,-775.44,0.00032054,5]
[327950611,1716694263376,-500.0,0.00032054,5]
[327950612,1716694263385,-587.3419195,0.00032054,5]
[327950613,1716694263394,-500.0,0.00032054,5]
[327950614,1716694263404,-500.0,0.00032054,5]
[327950615,1716694263414,-500.0,0.00032054,5]
[327950616,1716694263428,-543.74059394,0.00032054,5]
[327950617,1716694263437,-549.15,0.00032054,5]
[327950618,1716694263446,-500.0,0.00032054,5]
[327950619,1716694263455,-777.89,0.00032054,5]
[327950620,1716694263466,-500.0,0.00032054,5]
[327950621,1716694263475,-680.35,0.00032054,5]
[327950622,1716694263485,-500.0,0.00032054,5]
[327950623,1716694263493,-500.0,0.00032054,5]
[327950624,1716694263504,-500.0,0.00032054,5]
[327950625,1716694263514,-500.0,0.00032054,5]
[327950626,1716694263523,-500.0,0.00032054,5]
[327950627,1716694263532,-807.88,0.00032054,5]
[327950628,1716694263542,-500.0,0.00032054,5]
[327950629,1716694263551,-500.0,0.00032054,5]
[327950630,1716694263560,-151.0,0.00032054,7]
[327950631,1716694263569,-286.139684,0.00032054,7]
[327950632,1716694263578,-500.0,0.00032054,5]
[327950633,1716694263588,-500.0,0.00032054,5]
[327950634,1716694263597,-256.455484,0.00032054,7]
[327950635,1716694263606,-256.455484,0.00032054,7]
[327950636,1716694263616,-500.0,0.00032054,5]
[327950637,1716694263625,-500.0,0.00032054,5]
[327950638,1716694263635,-500.0,0.00032054,5]
[327950639,1716694263644,-500.0,0.00032054,2]
[327950640,1716694263655,-806.72,0.00032054,5]
[327950641,1716694263664,-500.0,0.00032054,5]
[327950642,1716694263673,-847.05,0.00032054,5]
[327950643,1716694263682,-500.0,0.00032054,5]
[327950644,1716694263691,-500.0,0.00032054,5]
[327950645,1716694263700,-500.0,0.00032054,5]
[327950646,1716694263709,-500.0,0.00032054,5]
[327950647,1716694263718,-500.0,0.00032054,5]
[327950648,1716694263728,-500.0,0.00032054,5]
[327950649,1716694263737,-526.41,0.00032054,5]
[327950650,1716694263746,-1325.6,0.00032054,2]
[327950651,1716694263759,-331.60052161,0.00032054,2]
[327950652,1716694263767,-500.0,0.00032054,2]
[327950653,1716694263777,-224.25483429,0.00032054,5]
[327950654,1716694263787,-500.0,0.00032054,5]
[327950655,1716694263796,-500.0,0.00032054,5]
[327950656,1716694263805,-500.0,0.00032054,5]
[327950657,1716694263814,-522.88,0.00032054,5]
[327950658,1716694263823,-514.94,0.00032054,5]
[327950659,1716694263832,-500.0,0.00032054,5]
[327950660,1716694263841,-500.0,0.00032054,5]
[327950661,1716694263850,-500.0,0.00032054,5]
[327950662,1716694263860,-151.0,0.00032054,7]
[327950663,1716694263869,-151.0,0.00032054,7]
[327950664,1716694263878,-536.09,0.00032054,5]
[327950665,1716694263887,-500.0,0.00032054,5]
[327950666,1716694263897,-151.0,0.00032054,7]
[327950667,1716694263906,-151.0,0.00032054,7]
[327950668,1716694263915,-523.67,0.00032054,5]
[327950669,1716694263924,-500.0,0.00032054,5]
[327950670,1716694263934,-500.0,0.00032054,5]
[327950671,1716694263943,-500.0,0.00032054,5]
[327950672,1716694263952,-500.0,0.00032054,5]
[327950673,1716694263961,-619.24705232,0.00032054,5]
[327950674,1716694263971,-500.0,0.00032054,5]
[327950675,1716694263980,-1117.52,0.00032054,5]
[327950676,1716694263989,-500.0,0.00032054,5]
[327950677,1716694263998,-249.15065816,0.00032054,5]
[327950678,1716694264007,-500.0,0.00032054,5]
[327950679,1716694264017,-500.0,0.00032054,5]
[327950680,1716694264026,-627.58,0.00032054,5]
[327950681,1716694264035,-500.0,0.00032054,5]
[327950682,1716694264044,-601.35,0.00032054,5]
[327950683,1716694264053,-1294.42,0.00032054,5]
[327950684,1716694264063,-500.0,0.00032054,5]
[327950685,1716694264072,-749.85,0.00032054,5]
[327950686,1716694264081,-500.0,0.00032054,5]
[327950687,1716694264090,-1265.87,0.00032054,5]
[327950688,1716694264100,-500.0,0.00032054,5]
[327950689,1716694264109,-500.0,0.00032054,5]
[327950690,1716694264118,-500.0,0.00032054,5]
[327950691,1716694264127,-520.89,0.00032054,5]
[327950692,1716694264137,-500.0,0.00032054,5]
[327950693,1716694264146,-500.0,0.00032054,5]
[327950694,1716694264158,-503.6,0.00032054,5]
[327950695,1716694264169,-500.0,0.00032054,5]
[327950696,1716694264179,-500.0,0.00032054,5]